bitfinex-derivatives/quotes_BTCF0:USTF0_20250517
["timestamp","ask_amount","ask_price","bid_price","bid_amount"]
[1747485791805,0.12405346,103000.0,102990.0,1.35973249]
[1747485792005,0.12405346,103000.0,102990.0,1.72053249]
[1747485792305,0.12405346,103000.0,102990.0,1.35973249]
[1747485792606,0.12405346,103000.0,102990.0,1.72053249]
[1747485793105,0.12405346,103000.0,102990.0,1.54053249]
[1747485795106,0.12405346,103000.0,102990.0,1.17973249]
[1747485795298,0.12405346,103000.0,102990.0,1.54053249]
[1747485798008,0.12405346,103000.0,102990.0,1.47721859]
[1747485798210,0.12405346,103000.0,102990.0,1.54053249]
[1747485798706,0.12405346,103000.0,102990.0,1.53849249]
[1747485799012,0.31816336,103000.0,102990.0,1.26349859]
[1747485799205,0.38006336,103000.0,102990.0,0.96601249]
[1747485799405,0.74086336,103000.0,102990.0,0.69325859]
[1747485799608,0.74086336,103000.0,102990.0,1.11213859]
[1747485800305,0.74086336,103000.0,102990.0,0.69325859]
[1747485802002,0.74086336,103000.0,102990.0,0.58804125]
[1747485804809,0.38006336,103000.0,102990.0,0.58804125]
[1747485805017,0.18595346,103000.0,102990.0,0.65135515]
[1747485805207,0.09275346,103000.0,102990.0,0.92599538]
[1747485806115,0.09275346,103000.0,102990.0,1.10599538]
[1747485806511,0.09275346,103000.0,102990.0,1.11143754]
[1747485808516,0.002,103000.0,102990.0,1.17195962]
[1747485809019,0.002,103000.0,102990.0,1.38139962]
[1747485810522,0.002,103000.0,102990.0,1.37595746]
[1747485810711,0.0333,103000.0,102990.0,1.37595746]
[1747485811120,0.0333,103000.0,102990.0,1.25172368]
[1747485811519,0.0333,103000.0,102990.0,1.25716584]
[1747485812822,0.2274099,103000.0,102990.0,1.25716584]
[1747485813615,0.2274099,103000.0,102990.0,1.25172368]
[1747485814721,0.2585099,103000.0,102990.0,1.46112368]
[1747485815022,0.2585099,103000.0,102990.0,1.04228368]
[1747485815321,0.2585099,103000.0,102990.0,0.92032368]
[1747485815528,0.2915099,103000.0,102990.0,0.92032368]
[1747485816424,0.2915099,103000.0,102990.0,0.99389647]
[1747485818322,0.38226336,103000.0,102990.0,0.93337439]
[1747485820121,0.38226336,103000.0,102990.0,0.92244284]
[1747485822725,0.38226336,103000.0,102990.0,0.927885]
[1747485823722,0.38226336,103000.0,102990.0,0.92244284]
[1747485825434,0.38226336,103000.0,102990.0,0.98429801]
[1747485826933,0.34926336,103000.0,102990.0,0.98974017]
[1747485829939,0.34926336,103000.0,102990.0,0.927885]
[1747485830837,0.34926336,103000.0,102990.0,0.92244284]
[1747485833836,0.34926336,103000.0,102990.0,0.927885]
[1747485835742,0.34926336,103000.0,102990.0,1.00145779]
[1747485844048,0.34926336,103000.0,102990.0,0.92244284]
[1747485844949,0.34926336,103000.0,102990.0,0.98296492]
[1747485845139,0.34926336,103000.0,102990.0,0.98840708]
[1747485846250,0.31816336,103000.0,102990.0,0.98840708]
[1747485846749,0.28686336,103000.0,102990.0,0.98840708]
[1747485846946,0.09275346,103000.0,102990.0,0.98840708]
[1747485847150,0.09275346,103000.0,102990.0,1.16840708]
[1747485847553,0.09275346,103000.0,102990.0,1.24197987]
[1747485848548,0.09275346,103000.0,102990.0,1.60277987]
[1747485852859,0.09275346,103000.0,102990.0,1.24197987]
[1747485853157,0.09275346,103000.0,102990.0,1.60277987]
[1747485853957,0.09275346,103000.0,102990.0,1.24197987]
[1747485854148,0.09275346,103000.0,102990.0,1.60277987]
[1747485855457,0.09275346,103000.0,102990.0,1.60253987]
[1747485856058,0.09275346,103000.0,102990.0,1.74253987]
[1747485856247,0.28686326,103000.0,102990.0,1.74253987]
[1747485856961,0.28686326,103000.0,102990.0,1.38173987]
[1747485857154,0.09275346,103000.0,102990.0,1.74253987]
[1747485857354,0.09275346,103000.0,102990.0,1.73709771]
[1747485858756,0.09275346,103000.0,102990.0,1.67378381]
[1747485858952,0.09275346,103000.0,102990.0,1.73709771]
[1747485865064,0.12505346,103000.0,102990.0,1.73709771]
[1747485867061,0.12505346,103000.0,102990.0,1.66352492]
[1747485869859,0.09275346,103000.0,102990.0,1.66352492]
[1747485870467,0.09275346,103000.0,102990.0,1.66896708]
[1747485871663,0.09275346,103000.0,102990.0,1.74253987]
[1747485874564,0.09275346,103000.0,102990.0,1.38173987]
[1747485874773,0.09275346,103000.0,102990.0,1.74253987]
[1747485875864,0.09275346,103000.0,102990.0,1.38173987]
[1747485876068,0.09275346,103000.0,102990.0,1.74253987]
[1747485877256,0.09275346,103000.0,102990.0,1.80585377]
[1747485878374,6e-08,103000.0,102990.0,2.00294586]
[1747485878867,6e-08,103000.0,102990.0,2.0048877]
[1747485880081,6e-08,103000.0,102990.0,2.3656877]
[1747485880378,0.26529248,103020.0,103010.0,0.194091]
[1747485880563,0.23409248,103020.0,103010.0,0.6182049]
[1747485880868,0.23409248,103020.0,103010.0,0.7121049]
[1747485881063,0.26669248,103020.0,103010.0,0.7121049]
[1747485881272,0.2571722,103020.0,103010.0,1.1300249]
[1747485881470,0.2601722,103020.0,103010.0,0.81005395]
[1747485881661,0.2601722,103020.0,103010.0,1.17085395]
[1747485882071,0.2631722,103020.0,103010.0,1.18552122]
[1747485883673,0.2631722,103020.0,103010.0,0.82472122]
[1747485883874,0.2631722,103020.0,103010.0,1.18552122]
[1747485884074,0.2601722,103020.0,103010.0,1.18552122]
[1747485884368,0.27166262,103020.0,103010.0,1.18552122]
[1747485884575,0.27066262,103020.0,103010.0,1.18552122]
[1747485884966,0.2611722,103020.0,103010.0,1.18552122]
[1747485885666,0.2611722,103020.0,103010.0,1.30993797]
[1747485886268,0.2611722,103020.0,103010.0,1.12913797]
[1747485886469,0.2611722,103020.0,103010.0,1.48993797]
[1747485889267,0.2611722,103020.0,103010.0,1.48985797]
[1747485889471,0.2611722,103020.0,103010.0,1.42721673]
[1747485890076,0.2611722,103020.0,103010.0,1.15502283]
[1747485890274,0.6219722,103020.0,103010.0,1.06641673]
[1747485890774,0.6219722,103020.0,103010.0,1.07185889]
[1747485894373,0.6219722,103020.0,103010.0,1.05948254]
[1747485896179,0.6528722,103020.0,103010.0,0.87948254]
[1747485898275,0.2594722,103020.0,103010.0,1.05948254]
[1747485902092,0.35029746,103020.0,103010.0,1.05948254]
[1747485904094,0.35029746,103020.0,103010.0,0.861593]
[1747485904294,0.35029746,103020.0,103010.0,1.1336669]
[1747485905784,0.77441136,103020.0,103010.0,0.652633]
[1747485905987,0.86812526,103020.0,103010.0,0.34997473]
[1747485906187,1.04812526,103020.0,103010.0,0.16997473]
[1747485906887,1.04812526,103020.0,103010.0,0.32323668]
[1747485907086,0.86812526,103020.0,103010.0,0.12914568]
[1747485908197,0.80481136,103020.0,103010.0,0.32323668]
[1747485908497,0.90188336,103020.0,103010.0,0.32323668]
[1747485908697,0.93189186,103020.0,103010.0,0.32323668]
[1747485909397,0.93189186,103020.0,103010.0,0.12914568]
[1747485910400,0.99520576,103020.0,103010.0,0.00544216]
[1747485911301,1.17520576,103020.0,103010.0,0.00544216]
[1747485912001,1.054372,103020.0,103010.0,0.00544216]
[1747485912198,0.874372,103020.0,103010.0,0.00544216]
[1747485913703,0.513572,103020.0,103010.0,0.00544216]
[1747485913905,1.235172,103020.0,103010.0,0.04251096]
[1747485914307,1.1718581,103020.0,103010.0,0.04251096]
[1747485914494,1.1718581,103020.0,103010.0,0.07371096]
[1747485914905,1.32294302,103020.0,103010.0,0.07371096]
[1747485916205,1.38625692,103020.0,103010.0,0.07371096]
[1747485916402,1.38625692,103020.0,103010.0,0.04251096]
[1747485916605,1.28918492,103020.0,103010.0,0.04251096]
[1747485917896,1.63625692,103020.0,103010.0,0.04251096]
[1747485918305,1.46625692,103020.0,103010.0,0.04251096]
[1747485919806,1.67497692,103020.0,103010.0,0.04251096]
[1747485920005,1.59497692,103020.0,103010.0,0.04251096]
[1747485920399,1.80369692,103020.0,103010.0,0.04251096]
[1747485920809,1.38625692,103020.0,103010.0,0.04251096]
[1747485921007,1.80373692,103020.0,103010.0,0.04251096]
[1747485922809,1.80373692,103020.0,103010.0,0.00544216]
[1747485924409,1.80373692,103020.0,103010.0,0.03614216]
[1747485925305,1.80373692,103020.0,103010.0,0.00544216]
[1747485926913,1.08213692,103020.0,103010.0,0.00544216]
[1747485927113,1.80373692,103020.0,103010.0,0.00544216]
[1747485928914,1.80373692,103020.0,103010.0,0.03604216]
[1747485931714,1.91373692,103020.0,103010.0,0.03604216]
[1747485934518,1.81666492,103020.0,103010.0,0.03604216]
[1747485935217,1.81666492,103020.0,103010.0,0.06854216]
[1747485938209,0.194091,103010.0,103000.0,0.0695688]
[1747485938519,0.7135049,103010.0,103000.0,0.0695688]
[1747485939709,0.7135049,103010.0,103000.0,0.11899386]
[1747485940116,0.7135049,103010.0,103000.0,0.29899386]
[1747485940721,0.7165049,103010.0,103000.0,0.29899386]
[1747485941110,0.7165049,103010.0,103000.0,0.11899386]
[1747485941319,0.7195049,103010.0,103000.0,0.18149386]
[1747485942118,0.7195049,103010.0,103000.0,0.36149386]
[1747485943911,0.3587049,103010.0,103000.0,0.36149386]
[1747485944119,1.0803049,103010.0,103000.0,0.36149386]
[1747485947723,1.1003049,103010.0,103000.0,0.36149386]
[1747485949424,1.25138982,103010.0,103000.0,0.36149386]
[1747485949722,1.25138982,103010.0,103000.0,0.36693602]
[1747485954222,0.52978982,103010.0,103000.0,0.36693602]
[1747485954429,1.25138982,103010.0,103000.0,0.36693602]
[1747485958326,0.52978982,103010.0,103000.0,0.36693602]
[1747485958526,1.25138982,103010.0,103000.0,0.36693602]
[1747485959127,1.25138982,103010.0,103000.0,0.31751096]
[1747485960334,1.76998982,103010.0,103000.0,0.22251096]
[1747485961234,1.76998982,103010.0,103000.0,0.04251096]
[1747485961931,1.73629672,103010.0,102990.0,0.1457669]
[1747485962135,0.7764376,103000.0,102990.0,0.3257669]
[1747485963344,0.7784376,103000.0,102990.0,0.3257669]
[1747485964340,0.98941983,103000.0,102990.0,0.3257669]
[1747485965340,0.99141983,103000.0,102990.0,0.3257669]
[1747485965651,0.63061983,103000.0,102990.0,0.27634184]
[1747485965850,1.35221983,103000.0,102990.0,0.27634184]
[1747485966253,1.38221983,103000.0,102990.0,0.09634184]
[1747485968058,1.59089983,103000.0,102990.0,0.09634184]
[1747485968857,1.74198475,103000.0,102990.0,0.09634184]
[1747485969059,0.1941287,102990.0,102980.0,0.04942506]
[1747485969263,0.6815426,102990.0,102980.0,0.11032506]
[1747485970154,0.6483426,102990.0,102980.0,0.29032506]
[1747485970755,0.5850287,102990.0,102980.0,0.48447256]
[1747485971659,0.48176804,102990.0,102980.0,0.4983614]
[1747485971853,0.31509674,102990.0,102980.0,0.4983614]
[1747485972348,0.31509674,102990.0,102980.0,0.8922614]
[1747485973259,0.12096804,102990.0,102980.0,0.8922614]
[1747485973560,0.31509674,102990.0,102980.0,0.93368783]
[1747485974555,0.1941287,102990.0,102980.0,0.93368783]
[1747485976060,0.1941287,102990.0,102980.0,1.35076783]
[1747485978065,0.28485491,102990.0,102980.0,1.35076783]
[1747485979857,0.28485491,102990.0,102980.0,1.28745393]
[1747485980064,0.28485491,102990.0,102980.0,1.12012679]
[1747485981863,0.28485491,102990.0,102980.0,0.91156679]
[1747485982160,0.74086881,102990.0,102980.0,0.63973289]
[1747485982355,0.74086881,102990.0,102980.0,0.44558539]
[1747485982554,0.74086881,102990.0,102980.0,0.63973289]
[1747485982755,0.67755491,102990.0,102980.0,0.59830646]
[1747485983566,0.67755491,102990.0,102980.0,0.81014646]
[1747485984362,0.74086881,102990.0,102980.0,0.81014646]
[1747485984755,0.74086881,102990.0,102980.0,0.59830646]
[1747485984957,0.74086881,102990.0,102980.0,0.80998646]
[1747485985160,0.70775491,102990.0,102980.0,0.81010646]
[1747485985363,0.70775491,102990.0,102980.0,0.59830646]
[1747485985364,0.77106881,102990.0,102980.0,0.59830646]
[1747485986268,0.77106881,102990.0,102980.0,0.40415896]
[1747485986454,0.80416881,102990.0,102980.0,0.40415896]
[1747485986767,0.80416881,102990.0,102980.0,0.37105896]
[1747485987969,0.80416881,102990.0,102980.0,0.31015896]
[1747485988570,0.80416881,102990.0,102980.0,0.23487691]
[1747485988767,0.83441064,102990.0,102980.0,0.23487691]
[1747485991466,0.83441064,102990.0,102980.0,0.26697691]
[1747485993469,0.83441064,102990.0,102980.0,0.21754216]
[1747485994664,0.77109674,102990.0,102980.0,0.21754216]
[1747485994871,0.83441064,102990.0,102980.0,0.21754216]
[1747485995770,1.19521064,102990.0,102980.0,0.21754216]
[1747485998873,1.13189674,102990.0,102980.0,0.21754216]
[1747485999074,1.19521064,102990.0,102980.0,0.21754216]
[1747486005980,0.47361064,102990.0,102980.0,0.21754216]
[1747486006180,1.19521064,102990.0,102980.0,0.21754216]
[1747486006683,1.19521064,102990.0,102980.0,0.24854216]
[1747486006981,0.47361064,102990.0,102980.0,0.24854216]
[1747486007184,1.19521064,102990.0,102980.0,0.24854216]
[1747486007682,1.34629556,102990.0,102980.0,0.24854216]
[1747486009085,0.62469556,102990.0,102980.0,0.24854216]
[1747486009384,1.34629556,102990.0,102980.0,0.24854216]
[1747486009979,1.28298166,102990.0,102980.0,0.24854216]
[1747486010189,1.28298166,102990.0,102980.0,0.28084216]
[1747486010377,1.34629556,102990.0,102980.0,0.28084216]
[1747486011086,1.22532752,102990.0,102980.0,0.28084216]
[1747486011585,1.22532752,102990.0,102980.0,0.24854216]
[1747486011982,1.28864142,102990.0,102980.0,0.24854216]
[1747486012686,1.22532752,102990.0,102980.0,0.24854216]
[1747486013085,1.28864142,102990.0,102980.0,0.24854216]
[1747486013487,1.22532752,102990.0,102980.0,0.24854216]
[1747486013986,1.28864142,102990.0,102980.0,0.24854216]
[1747486014588,1.28864142,102990.0,102980.0,0.29797691]
[1747486017681,1.22532752,102990.0,102980.0,0.29797691]
[1747486017988,1.22532752,102990.0,102980.0,0.24854216]
[1747486019293,1.28864142,102990.0,102980.0,0.18544216]
[1747486019491,1.30864142,102990.0,102980.0,0.18544216]
[1747486019993,1.48864142,102990.0,102980.0,0.18544216]
[1747486020189,1.48864142,102990.0,102980.0,0.00544216]
[1747486022092,1.36201362,102990.0,102980.0,0.18544216]
[1747486022487,1.42532752,102990.0,102980.0,0.27714216]
[1747486022992,1.63576752,102990.0,102980.0,0.27714216]
[1747486023295,1.63572752,102990.0,102980.0,0.27714216]
[1747486024194,1.63572752,102990.0,102980.0,0.24654216]
[1747486024693,1.4846426,102990.0,102980.0,0.24654216]
[1747486025798,1.4866426,102990.0,102980.0,0.24654216]
[1747486026284,1.4886426,102990.0,102980.0,0.24654216]
[1747486028393,1.2986426,102990.0,102980.0,0.27794216]
[1747486028595,1.0882426,102990.0,102980.0,0.27794216]
[1747486032905,1.29922483,102990.0,102980.0,0.27794216]
[1747486033501,1.23591093,102990.0,102980.0,0.27794216]
[1747486033693,1.29922483,102990.0,102980.0,0.27794216]
[1747486035502,1.29922483,102990.0,102980.0,0.47208956]
[1747486035503,1.17261093,102990.0,102980.0,0.47208956]
[1747486035690,1.16261093,102990.0,102980.0,0.47208956]
[1747486036102,1.13071093,102990.0,102980.0,0.53540346]
[1747486036305,1.13071093,102990.0,102980.0,0.47208956]
[1747486036807,1.25175889,102990.0,102980.0,0.47208956]
[1747486037003,1.34817279,102990.0,102980.0,0.47208956]
[1747486040404,1.34817279,102990.0,102980.0,0.52152431]
[1747486045206,0.98737279,102990.0,102980.0,0.52152431]
[1747486047701,0.78752642,102990.0,102980.0,1.1640521]
[1747486047907,0.78752642,102990.0,102980.0,1.1007382]
[1747486047908,0.98165482,102990.0,102980.0,1.1007382]
[1747486048309,0.62085482,102990.0,102980.0,1.1007382]
[1747486048511,0.42672642,102990.0,102980.0,1.8752521]
[1747486048700,0.62085472,102990.0,102980.0,1.8119382]
[1747486048900,0.61885472,102990.0,102980.0,1.8119382]
[1747486049302,0.61685472,102990.0,102980.0,1.8119382]
[1747486049509,0.61685472,102990.0,102980.0,1.85266728]
[1747486049911,0.61685472,102990.0,102980.0,1.85466728]
[1747486050212,0.42272642,102990.0,102980.0,1.85666728]
[1747486051112,0.61685472,102990.0,102980.0,1.85666728]
[1747486051898,0.1941283,102990.0,102980.0,1.85666728]
[1747486052404,0.1941283,102990.0,102980.0,1.57143736]
[1747486052808,0.1941283,102990.0,102980.0,1.15263736]
[1747486053009,0.1941283,102990.0,102980.0,1.57127736]
[1747486053310,0.2268283,102990.0,102980.0,1.57127736]
[1747486053511,0.2268283,102990.0,102980.0,1.47417737]
[1747486057125,0.2268283,102990.0,102980.0,1.41094805]
[1747486062629,0.2268283,102990.0,102980.0,1.20198805]
[1747486062827,0.2268283,102990.0,102980.0,1.41070805]
[1747486064129,0.2268283,102990.0,102980.0,1.34739415]
[1747486064330,0.2268283,102990.0,102980.0,1.41070805]
[1747486066924,0.2268283,102990.0,102980.0,1.47416085]
[1747486069133,0.2584283,102990.0,102980.0,1.47416085]
[1747486071446,0.0327,102990.0,102980.0,1.58296034]
[1747486071739,0.0327,102990.0,102980.0,1.94376034]
[1747486071941,0.2268283,102990.0,102980.0,1.94376034]
[1747486072124,0.0327,102990.0,102980.0,1.94376034]
[1747486072322,0.2268283,102990.0,102980.0,1.94376034]
[1747486072535,0.0327,102990.0,102980.0,1.94376034]
[1747486072735,0.2268283,102990.0,102980.0,1.94376034]
[1747486072938,0.0327,102990.0,102980.0,1.94376034]
[1747486073736,0.2268283,102990.0,102980.0,1.94376034]
[1747486074737,0.2268283,102990.0,102980.0,2.00432457]
[1747486075237,0.2268283,102990.0,102980.0,1.94101067]
[1747486075626,0.2268283,102990.0,102980.0,1.95280795]
[1747486075832,0.18968915,102990.0,102980.0,1.95280795]
[1747486076239,0.18968915,102990.0,102980.0,2.01612185]
[1747486076438,0.85541113,103000.0,102990.0,0.1941283]
[1747486076640,0.85541113,103000.0,102990.0,0.3534422]
[1747486077244,0.85541113,103000.0,102990.0,0.5334422]
[1747486077738,0.85541113,103000.0,102990.0,0.57417128]
[1747486077940,0.49461113,103000.0,102990.0,0.57417128]
[1747486078927,0.52661113,103000.0,102990.0,0.57417128]
[1747486082542,0.52661113,103000.0,102990.0,0.69948204]
[1747486084144,0.52661113,103000.0,102990.0,0.63616814]
[1747486085533,0.52661113,103000.0,102990.0,0.6416103]
[1747486086038,0.52661113,103000.0,102990.0,0.7049242]
[1747486087042,0.52661113,103000.0,102990.0,0.9136042]
[1747486087344,0.52661113,103000.0,102990.0,0.8502903]
[1747486088345,0.52661113,103000.0,102990.0,0.9136042]
[1747486088943,0.52661113,103000.0,102990.0,0.7049242]
[1747486089146,0.52661113,103000.0,102990.0,1.1222442]
[1747486089343,0.88741113,103000.0,102990.0,0.6416103]
[1747486089741,0.95072503,103000.0,102990.0,0.6416103]
[1747486090351,0.88741113,103000.0,102990.0,0.5775103]
[1747486091551,1.00845909,103000.0,102990.0,0.5775103]
[1747486092951,1.00845909,103000.0,102990.0,0.7861503]
[1747486093352,1.07177299,103000.0,102990.0,0.351482]
[1747486093552,1.07177299,103000.0,102990.0,0.7542503]
[1747486093737,1.07177299,103000.0,102990.0,0.351482]
[1747486093944,1.13508689,103000.0,102990.0,0.351482]
[1747486094147,1.13508689,103000.0,102990.0,0.171482]
[1747486095051,0.9233427,103000.0,102990.0,0.13075292]
[1747486095247,0.8600288,103000.0,102990.0,0.13075292]
[1747486096250,0.9233427,103000.0,102990.0,0.13075292]
[1747486096651,0.9253427,103000.0,102990.0,0.13075292]
[1747486097154,0.9253427,103000.0,102990.0,0.04255213]
[1747486097456,0.9273427,103000.0,102990.0,0.04255213]
[1747486099362,0.9473427,103000.0,102990.0,0.04255213]
[1747486099551,1.2944347,103000.0,102990.0,0.04255213]
[1747486099754,0.1941283,102990.0,102980.0,0.04947996]
[1747486099946,0.7610422,102990.0,102980.0,0.04947996]
[1747486100357,0.7110422,102990.0,102980.0,0.04947996]
[1747486102151,0.98533353,102990.0,102980.0,0.04947996]
[1747486102356,0.1941471,102980.0,102970.0,0.27541687]
[1747486102550,0.714861,102980.0,102970.0,0.31871687]
[1747486102751,0.714861,102980.0,102970.0,0.34911687]
[1747486103152,0.714861,102980.0,102970.0,0.52911687]
[1747486104661,0.72457087,102980.0,102970.0,0.33495107]
[1747486105260,0.36377087,102980.0,102970.0,0.33495107]
[1747486105560,0.72457087,102980.0,102970.0,0.33495107]
[1747486105759,0.81523966,102980.0,102970.0,0.33495107]
[1747486106361,0.81523966,102980.0,102970.0,0.52911707]
[1747486107857,0.45443966,102980.0,102970.0,0.52911707]
[1747486108163,0.81523966,102980.0,102970.0,0.47963711]
[1747486109357,0.75192576,102980.0,102970.0,0.47963711]
[1747486109558,0.81523966,102980.0,102970.0,0.47963711]
[1747486109962,0.75192576,102980.0,102970.0,0.47963711]
[1747486110161,0.81523966,102980.0,102970.0,0.47963711]
[1747486110762,0.8756596,102980.0,102970.0,0.47963711]
[1747486112462,0.5148596,102980.0,102970.0,0.47963711]
[1747486112662,0.8756596,102980.0,102970.0,0.47963711]
[1747486113770,0.5148596,102980.0,102970.0,0.47963711]
[1747486114067,0.8756596,102980.0,102970.0,0.47963711]
[1747486114975,0.8756596,102980.0,102970.0,0.48507927]
[1747486117566,0.81523966,102980.0,102970.0,0.48507927]
[1747486120270,0.45443966,102980.0,102970.0,0.48507927]
[1747486120472,0.81523966,102980.0,102970.0,0.48507927]
[1747486120673,0.93622104,102980.0,102970.0,0.48507927]
[1747486121482,0.93622104,102980.0,102970.0,0.53455923]
[1747486123087,0.93622104,102980.0,102970.0,0.34039323]
[1747486123990,0.84555225,102980.0,102970.0,0.34039323]
[1747486125090,0.90886615,102980.0,102970.0,0.33039323]
[1747486126786,0.84555225,102980.0,102970.0,0.33039323]
[1747486132489,1.20635225,102980.0,102970.0,0.33039323]
[1747486133593,1.26966615,102980.0,102970.0,0.33039323]
[1747486134696,1.08537087,102980.0,102970.0,0.33039323]
[1747486136597,0.36377087,102980.0,102970.0,0.33039323]
[1747486136799,1.08537087,102980.0,102970.0,0.33039323]
[1747486137994,0.36377087,102980.0,102970.0,0.33039323]
[1747486138198,1.08537087,102980.0,102970.0,0.33039323]
[1747486138593,0.36377087,102980.0,102970.0,0.33039323]
[1747486138794,1.08537087,102980.0,102970.0,0.33039323]
[1747486140903,1.23668082,102980.0,102970.0,0.33039323]
[1747486141301,1.17336692,102980.0,102970.0,0.33039323]
[1747486141598,1.23668082,102980.0,102970.0,0.33039323]
[1747486143106,1.17336692,102980.0,102970.0,0.33039323]
[1747486143310,1.23668082,102980.0,102970.0,0.33039323]
[1747486154904,0.51508082,102980.0,102970.0,0.33039323]
[1747486155107,1.23668082,102980.0,102970.0,0.33039323]
[1747486157012,0.51508082,102980.0,102970.0,0.33039323]
[1747486157214,1.23668082,102980.0,102970.0,0.33039323]
[1747486160416,0.63640789,102980.0,102970.0,0.33039323]
[1747486160605,1.35800789,102980.0,102970.0,0.33039323]
[1747486161911,0.63640789,102980.0,102970.0,0.33039323]
[1747486162114,1.35800789,102980.0,102970.0,0.33039323]
[1747486163122,1.23668082,102980.0,102970.0,0.33039323]
[1747486163415,0.51508082,102980.0,102970.0,0.33039323]
[1747486163617,1.23668082,102980.0,102970.0,0.33039323]
[1747486166419,0.51508082,102980.0,102970.0,0.33039323]
[1747486166618,1.23668082,102980.0,102970.0,0.33039323]
[1747486176229,0.51508082,102980.0,102970.0,0.33039323]
[1747486176528,1.23668082,102980.0,102970.0,0.33039323]
[1747486181330,0.51508082,102980.0,102970.0,0.33039323]
[1747486181531,1.23668082,102980.0,102970.0,0.33039323]
[1747486189532,1.23668082,102980.0,102970.0,0.52455923]
[1747486189738,1.23668082,102980.0,102970.0,0.33039323]
[1747486193343,0.51508082,102980.0,102970.0,0.33039323]
[1747486193641,1.23668082,102980.0,102970.0,0.33039323]
[1747486194641,1.23668082,102980.0,102970.0,0.52455923]
[1747486194840,1.23668082,102980.0,102970.0,0.33039323]
[1747486196941,1.23668082,102980.0,102970.0,0.52455923]
[1747486197150,1.20378082,102980.0,102970.0,0.52455923]
[1747486198445,1.10996692,102980.0,102970.0,0.58787313]
[1747486198753,0.74916692,102980.0,102970.0,0.58787313]
[1747486199252,0.74916692,102980.0,102970.0,0.52455923]
[1747486200446,0.87039955,102980.0,102970.0,0.52455923]
[1747486203865,0.87039955,102980.0,102970.0,0.53693723]
[1747486208867,0.87039955,102980.0,102970.0,0.60025113]
[1747486209667,0.87039955,102980.0,102970.0,0.53839317]
[1747486209963,0.87039955,102980.0,102970.0,0.47507927]
[1747486210368,0.7190896,102980.0,102970.0,0.47507927]
[1747486213669,0.70937973,102980.0,102970.0,0.53839317]
[1747486213869,0.31537983,102980.0,102970.0,0.89919317]
[1747486214769,0.31537983,102980.0,102970.0,0.53839317]
[1747486216274,0.34627983,102980.0,102970.0,0.53839317]
[1747486216971,0.37653518,102980.0,102970.0,0.53839317]
[1747486217175,0.34563518,102980.0,102970.0,0.53839317]
[1747486217872,0.15148798,102980.0,102970.0,0.53839317]
[1747486218073,0.34563518,102980.0,102970.0,0.53839317]
[1747486218275,0.34563518,102980.0,102970.0,0.89919317]
[1747486218972,0.37773518,102980.0,102970.0,0.89919317]
[1747486219774,0.37773518,102980.0,102970.0,0.68307927]
[1747486220271,0.73853518,102980.0,102970.0,0.47507927]
[1747486220468,0.77113518,102980.0,102970.0,0.47507927]
[1747486220668,0.83444908,102980.0,102970.0,0.68307927]
[1747486220870,0.86704908,102980.0,102970.0,0.68307927]
[1747486221069,0.86704908,102980.0,102970.0,0.47507927]
[1747486221673,0.86704908,102980.0,102970.0,0.68303927]
[1747486221869,0.80645389,102980.0,102970.0,0.68303927]
[1747486222070,0.80645389,102980.0,102970.0,0.80903629]
[1747486223377,0.80645389,102980.0,102970.0,0.60107629]
[1747486224878,0.74313999,102980.0,102970.0,0.60107629]
[1747486227977,0.38233999,102980.0,102970.0,0.60107629]
[1747486228178,0.74313999,102980.0,102970.0,0.60107629]
[1747486228982,0.86437262,102980.0,102970.0,0.60107629]
[1747486231586,0.92768652,102980.0,102970.0,0.60107629]
[1747486232083,0.99100042,102980.0,102970.0,0.50657629]
[1747486232280,0.92768652,102980.0,102970.0,0.50657629]
[1747486232783,0.92768652,102980.0,102970.0,0.53987629]
[1747486234891,0.83679373,102980.0,102970.0,0.53987629]
[1747486235289,0.83679373,102980.0,102970.0,0.41387927]
[1747486238891,0.83679373,102980.0,102970.0,0.47677927]
[1747486242594,0.47599373,102980.0,102970.0,0.47677927]
[1747486242797,0.83679373,102980.0,102970.0,0.47677927]
[1747486246197,0.47599373,102980.0,102970.0,0.47677927]
[1747486246397,0.83679373,102980.0,102970.0,0.47677927]
[1747486248090,0.47599373,102980.0,102970.0,0.47677927]
[1747486248293,0.83679373,102980.0,102970.0,0.47677927]
[1747486248996,0.47599373,102980.0,102970.0,0.47677927]
[1747486249299,0.83679373,102980.0,102970.0,0.47677927]
[1747486252801,0.47599373,102980.0,102970.0,0.47677927]
[1747486253001,0.83679373,102980.0,102970.0,0.47677927]
[1747486256106,0.83679373,102980.0,102970.0,0.60346442]
[1747486257706,0.83679373,102980.0,102970.0,0.40929842]
[1747486258319,0.90010763,102980.0,102970.0,0.34639842]
[1747486258812,0.83679373,102980.0,102970.0,0.34639842]
[1747486259207,0.83679373,102980.0,102970.0,0.37929842]
[1747486259408,0.83679373,102980.0,102970.0,0.41149842]
[1747486260614,0.7155611,102980.0,102970.0,0.41149842]
[1747486261115,0.7155611,102980.0,102970.0,0.28481327]
[1747486265914,0.6522472,102980.0,102970.0,0.47897937]
[1747486266115,0.7155611,102980.0,102970.0,0.47897937]
[1747486266318,0.6829611,102980.0,102970.0,0.47897937]
[1747486266511,0.83427105,102980.0,102970.0,0.47897937]
[1747486269830,0.83427105,102980.0,102970.0,0.52847656]
[1747486278031,0.77095715,102980.0,102970.0,0.52847656]
[1747486278223,0.95550661,102980.0,102970.0,0.52847656]
[1747486280422,0.59470661,102980.0,102970.0,0.52847656]
[1747486280718,0.95550661,102980.0,102970.0,0.52847656]
[1747486281422,0.83427105,102980.0,102970.0,0.52847656]
[1747486286036,0.47347105,102980.0,102970.0,0.52847656]
[1747486286230,0.83427105,102980.0,102970.0,0.52847656]
[1747486287235,0.47347105,102980.0,102970.0,0.52847656]
[1747486287533,0.83427105,102980.0,102970.0,0.52847656]
[1747486291133,0.9555666,102980.0,102970.0,0.52847656]
[1747486293433,0.8596527,102980.0,102970.0,0.52847656]
[1747486293833,0.73835715,102980.0,102970.0,0.52847656]
[1747486294029,0.73835715,102980.0,102970.0,0.59179046]
[1747486294234,0.70625715,102980.0,102970.0,0.59179046]
[1747486294526,0.51210995,102980.0,102970.0,0.59179046]
[1747486294847,0.70625715,102980.0,102970.0,0.59179046]
[1747486295639,0.70625715,102980.0,102970.0,0.54229327]
[1747486296343,0.34545715,102980.0,102970.0,0.90309327]
[1747486296529,0.34545715,102980.0,102970.0,0.91270576]
[1747486296728,0.1941472,102980.0,102970.0,0.91270576]
[1747486300043,0.34564121,102980.0,102970.0,0.91270576]
[1747486300542,0.34564121,102980.0,102970.0,1.03923894]
[1747486301045,0.15149401,102980.0,102970.0,1.03923894]
[1747486301245,0.34564121,102980.0,102970.0,1.03923894]
[1747486301452,0.15149401,102980.0,102970.0,1.03923894]
[1747486301743,0.15149401,102980.0,102970.0,1.38963894]
[1747486303749,0.15149401,102980.0,102970.0,1.43512453]
[1747486303750,0.2547447,102980.0,102970.0,1.43512453]
[1747486303948,0.2547447,102980.0,102970.0,1.64252453]
[1747486304348,0.0605976,102980.0,102970.0,1.64252453]
[1747486306949,0.0605976,102980.0,102970.0,1.59703894]
[1747486307149,0.2547449,102980.0,102970.0,1.59703894]
[1747486309753,0.0605976,102980.0,102970.0,1.59703894]